bitfinex-derivatives/quotes_SOLF0:USTF0_20250630
["timestamp","ask_amount","ask_price","bid_price","bid_amount"]
[1751243646375,4.52488808,152.73,152.6,4.52488808]
[1751243646679,4.52488808,152.65,152.57,54.62630256]
[1751243646876,4.52488808,152.69,152.59,4.52488808]
[1751243647081,4.70510284,152.68,152.61,5.2408]
[1751243647378,4.5414506,152.71,152.62,42.08]
[1751243647578,4.5414506,152.71,152.62,51.84508808]
[1751243647772,4.52488808,152.63,152.59,8.02141448]
[1751243647973,4.52488808,152.61,152.55,8.02141448]
[1751243648179,9.76518808,152.63,152.56,8.02141448]
[1751243648379,9.76518808,152.63,152.57,50.10141448]
[1751243648380,4.5414506,152.62,152.57,50.10141448]
[1751243648680,4.5414506,152.64,152.57,50.10141448]
[1751243649271,4.5414506,152.63,152.57,50.10141448]
[1751243649476,4.5414506,152.64,152.57,42.08]
[1751243649676,4.52488808,152.65,152.57,42.08]
[1751243649877,4.5414506,152.64,152.57,44.4489]
[1751243650181,4.15292244,152.69,152.58,4.52488808]
[1751243650182,4.5414506,152.68,152.58,4.52488808]
[1751243650382,4.5414506,152.67,152.6,4.52488808]
[1751243650577,4.5414506,152.67,152.57,44.4489]
[1751243650578,4.5414506,152.68,152.63,5.2399]
[1751243650879,4.5414506,152.71,152.64,46.63071601]
[1751243651080,4.5414506,152.7,152.65,42.1]
[1751243651281,4.5414506,152.71,152.67,5.2386]
[1751243651481,4.5414506,152.73,152.67,5.2386]
[1751243651682,4.5414506,152.72,152.67,5.2386]
[1751243651983,4.53071601,152.74,152.67,5.2386]
[1751243652184,4.5414506,152.73,152.67,5.2386]
[1751243652380,4.5414506,152.73,152.53,12.04654728]
[1751243652586,4.5414506,152.73,152.54,4.52815407]
[1751243652587,4.52815407,152.64,152.54,4.52815407]
[1751243652781,5.2404,152.63,152.54,4.52815407]
[1751243653079,4.5414506,152.62,152.55,4.52815407]
[1751243653280,5.2398,152.64,152.57,4.52815407]
[1751243653481,4.54290264,152.65,152.58,44.26]
[1751243653678,4.54290264,152.64,152.58,44.26]
[1751243653983,5.2401,152.63,152.58,44.26]
[1751243654183,4.54290264,152.64,152.58,44.26]
[1751243654383,5.2401,152.64,152.58,44.26]
[1751243654877,5.2401,152.64,152.58,49.5015]
[1751243655084,4.54290264,152.66,152.58,44.26]
[1751243655281,4.54290264,152.65,152.58,44.26]
[1751243655479,4.54290264,152.67,152.58,44.26]
[1751243655683,4.54290264,152.66,152.58,44.26]
[1751243655884,4.54290264,152.65,152.58,44.26]
[1751243656188,4.54290264,152.67,152.58,44.26]
[1751243656685,4.54290264,152.67,152.59,7.71672345]
[1751243656881,4.54290264,152.68,152.59,7.71672345]
[1751243657085,4.54290264,152.67,152.6,2.2633]
[1751243657286,5.2388,152.67,152.61,5.2407]
[1751243658190,4.54290264,152.68,152.62,5.2404]
[1751243658387,4.54290264,152.68,152.63,44.26]
[1751243659385,6.83530264,152.69,152.63,44.26]
[1751243659778,7.71672345,152.68,152.63,44.26]
[1751243660882,5.2389,152.67,152.63,44.26]
[1751243661085,7.71672345,152.68,152.63,44.26]
[1751243661686,5.2388,152.67,152.63,44.26]
[1751243661879,7.71672345,152.7,152.63,44.26]
[1751243662482,7.71672345,152.72,152.63,44.26]
[1751243662686,2.2036,152.73,152.63,51.96957192]
[1751243663085,5.238,152.7,152.64,5.2397]
[1751243664184,5.238,152.7,152.65,5.2393]
[1751243664489,5.2372,152.72,152.63,51.96957192]
[1751243664688,5.2372,152.72,152.66,5.2389]
[1751243665388,5.2375,152.71,152.66,5.2389]
[1751243665690,5.2375,152.71,152.64,2.3197]
[1751243665887,5.2368,152.73,152.64,2.3197]
[1751243666389,5.2368,152.73,152.65,353.6]
[1751243666594,5.237,152.72,152.67,5.2385]
[1751243666786,5.237,152.72,152.68,44.26]
[1751243666983,4.47038857,152.78,152.69,5.2377]
[1751243667187,4.47038857,152.81,152.69,12.05887192]
[1751243667482,2.2435,152.81,152.69,12.05887192]
[1751243667889,5.2347,152.79,152.69,12.05887192]
[1751243668387,5.2348,152.79,152.73,5.2366]
[1751243668588,4.47038857,152.84,152.74,44.26]
[1751243668886,5.2341,152.81,152.75,5.2359]
[1751243669789,4.47038857,152.84,152.74,44.26]
[1751243670086,4.47038857,152.85,152.74,44.26]
[1751243670293,5.2342,152.81,152.75,5.2357]
[1751243670793,5.2344,152.8,152.74,49.4962]
[1751243671096,4.47038857,152.85,152.74,44.26]
[1751243671287,4.47038857,152.84,152.74,44.26]
[1751243671592,4.47038857,152.85,152.74,44.26]
[1751243671788,7.70688348,152.79,152.54,7.70688348]
[1751243671984,7.70688348,152.66,152.56,2.3094]
[1751243672183,4.47038857,152.77,152.57,397.76]
[1751243672385,7.70688348,152.74,152.62,7.70688348]
[1751243672586,7.70688348,152.74,152.64,5.2396]
[1751243672992,7.70688348,152.74,152.64,2.1486]
[1751243673593,12.96267623,152.74,152.64,2.1486]
[1751243673895,5.2379,152.7,152.64,2.1486]
[1751243674394,5.2379,152.7,152.64,7.3883]
[1751243674595,7.70688348,152.74,152.64,2.1486]
[1751243674991,12.96360128,152.74,152.64,2.1486]
[1751243675191,5.2383,152.69,152.64,2.1486]
[1751243679598,5.2378,152.7,152.64,2.1486]
[1751243680992,5.2381,152.69,152.64,2.1486]
[1751243682802,5.2378,152.7,152.64,2.1486]
[1751243683198,4.47038857,152.75,152.64,2.1486]
[1751243683394,4.47038857,152.74,152.64,2.1486]
[1751243683600,4.47038857,152.73,152.64,2.1486]
[1751243683897,10.4738,152.73,152.57,8.09734405]
[1751243684101,7.7105474,152.68,152.57,43.92]
[1751243684301,4.47038857,152.67,152.57,43.92]
[1751243684496,5.2397,152.65,152.59,5.2413]
[1751243684898,4.62268503,152.66,152.59,5.2413]
[1751243685101,5.2393,152.66,152.59,5.2413]
[1751243685303,9.86198503,152.66,152.59,5.2413]
[1751243685504,5.2393,152.66,152.59,5.2413]
[1751243685906,5.2393,152.66,152.6,5.241]
[1751243687101,5.2393,152.66,152.61,5.2408]
[1751243687406,9.81765846,152.67,152.62,43.92]
[1751243688307,5.2389,152.67,152.62,43.92]
[1751243688609,9.81755906,152.67,152.62,49.1603]
[1751243689006,9.81735906,152.67,152.62,49.1603]
[1751243689514,5.2387,152.67,152.62,49.1603]
[1751243690514,9.81802006,152.67,152.62,49.1603]
[1751243691113,12.29436487,152.67,152.63,5.2401]
[1751243691309,7.71504481,152.67,152.63,5.2401]
[1751243691610,4.58038734,152.7,152.62,51.63504481]
[1751243691914,5.2372,152.72,152.63,6.9331]
[1751243692115,4.58038734,152.71,152.63,6.9331]
[1751243692317,5.2374,152.71,152.65,5.2391]
[1751243692507,4.58038734,152.7,152.63,6.9331]
[1751243693216,4.58038734,152.7,152.65,5.2394]
[1751243693415,4.58038734,152.7,152.63,6.9331]
[1751243693711,4.58038734,152.7,152.65,5.2394]
[1751243694218,4.58038734,152.7,152.63,6.9331]
[1751243695417,4.58038734,152.7,152.66,5.2389]
[1751243695711,4.58038734,152.7,152.67,43.92]
[1751243696316,5.2374,152.71,152.67,43.92]
[1751243696816,9.81778734,152.71,152.67,43.92]
[1751243697013,5.2374,152.71,152.67,43.92]
[1751243697411,9.81778734,152.71,152.67,43.92]
[1751243697610,5.2374,152.71,152.67,43.92]
[1751243698016,9.81778734,152.71,152.67,43.92]
[1751243698217,5.2374,152.71,152.67,43.92]
[1751243698716,9.81778734,152.71,152.67,43.92]
[1751243698919,5.2374,152.71,152.67,43.92]
[1751243699315,9.81778734,152.71,152.67,43.92]
[1751243699516,5.2372,152.72,152.67,49.1587]
[1751243699717,4.58038734,152.71,152.67,49.1587]
[1751243700021,9.81778734,152.71,152.67,49.1587]
[1751243700217,5.2374,152.71,152.67,49.1587]
[1751243700517,4.58038734,152.72,152.67,49.1587]
[1751243700717,4.58038734,152.71,152.67,49.1587]
[1751243701119,4.58038734,152.71,152.67,43.92]
[1751243701423,4.58038734,152.72,152.67,43.92]
[1751243701626,5.2372,152.72,152.67,49.1586]
[1751243702119,4.58038734,152.72,152.67,43.92]
[1751243702417,4.58038734,152.74,152.67,43.92]
[1751243702613,4.58038734,152.74,152.68,4.52826059]
[1751243702919,4.58038734,152.75,152.68,4.52826059]
[1751243703114,4.69374039,152.74,152.68,4.52826059]
[1751243703320,9.92984039,152.75,152.7,5.2375]
[1751243703520,4.69374039,152.74,152.7,5.2375]
[1751243703715,4.69374039,152.74,152.72,5.2368]
[1751243703917,7.5431,152.77,152.72,5.2368]
[1751243703918,4.69374039,152.76,152.73,43.92]
[1751243704118,4.52826059,152.78,152.73,43.92]
[1751243704323,5.2357,152.76,152.73,43.92]
[1751243704720,4.52826059,152.78,152.73,43.92]
[1751243705021,4.69333084,152.77,152.73,43.92]
[1751243705323,5.236,152.75,152.73,43.92]
[1751243705525,9.92933084,152.75,152.73,43.92]
[1751243705718,5.236,152.75,152.73,43.92]
[1751243706023,5.2358,152.76,152.73,43.92]
[1751243706224,4.6934091,152.75,152.73,43.92]
[1751243706524,4.52826059,152.78,152.73,43.92]
[1751243706723,4.69390273,152.77,152.73,43.92]
[1751243706921,5.2363,152.74,152.73,43.92]
[1751243707121,4.69390273,152.74,152.73,43.92]
[1751243709322,9.93020273,152.74,152.73,43.92]
[1751243709528,4.69390273,152.74,152.73,43.92]
[1751243709826,4.69390273,152.74,152.72,43.92]
[1751243710028,5.2361,152.75,152.72,43.92]
[1751243710229,4.74769386,152.74,152.72,43.92]
[1751243710430,4.52826059,152.76,152.72,43.92]
[1751243710431,9.98403244,152.73,152.72,43.92]
[1751243710623,5.2367,152.73,152.72,43.92]
[1751243711125,5.2367,152.73,152.69,5.238]
[1751243711126,4.74733244,152.73,152.66,43.9]
[1751243711324,9.27559303,152.72,152.66,43.9]
[1751243711524,4.74733244,152.71,152.66,43.9]
[1751243711731,4.74613456,152.73,152.66,43.9]
[1751243712029,4.74613456,152.72,152.66,43.9]
[1751243712225,4.52826059,152.74,152.66,43.9]
[1751243712425,5.2376,152.71,152.66,43.9]
[1751243712632,2.2056,152.75,152.66,43.9]
[1751243712826,4.74716313,152.74,152.66,43.9]
[1751243713023,4.74716313,152.73,152.68,5.2384]
[1751243713330,4.52826059,152.76,152.67,4.52826059]
[1751243713532,9.97321879,152.75,152.69,5.2377]
[1751243713730,4.73711879,152.74,152.69,9.76596059]
[1751243713928,2.2056,152.8,152.73,4.52826059]
[1751243714232,4.73763303,152.79,152.74,42.7]
[1751243714434,4.73763303,152.78,152.74,42.7]
[1751243714634,4.73763303,152.77,152.74,42.7]
[1751243714824,4.73763303,152.76,152.74,42.7]
[1751243715029,2.2056,152.8,152.74,42.7]
[1751243715236,4.73929888,152.79,152.74,42.7]
[1751243715434,4.73929888,152.78,152.74,42.7]
[1751243715630,4.73929888,152.77,152.74,42.7]
[1751243715832,4.73929888,152.76,152.74,42.7]
[1751243716131,5.2355,152.77,152.74,42.7]
[1751243716330,4.74049314,152.76,152.74,42.7]
[1751243716528,5.2355,152.77,152.74,42.7]
[1751243716730,4.74220287,152.76,152.74,42.7]
[1751243716929,4.76403331,152.75,152.74,42.7]
[1751243717329,10.00003331,152.75,152.74,42.7]
[1751243720035,4.76403331,152.75,152.71,4.52826059]
[1751243720237,4.76403331,152.79,152.71,4.52826059]
[1751243720438,9.99903331,152.78,152.74,5.2363]
[1751243720638,4.76403331,152.77,152.73,4.52826059]
[1751243720839,4.76403331,152.76,152.73,4.52826059]
[1751243721040,9.93572796,152.8,152.75,5.2357]
[1751243721236,4.70122796,152.79,152.76,42.7]
[1751243721430,4.70122796,152.78,152.76,42.7]
[1751243721631,4.69901556,152.79,152.76,42.7]
[1751243721832,4.25617853,152.85,152.76,47.22826059]
[1751243722038,4.6994954,152.84,152.76,47.22826059]
[1751243722233,4.6994954,152.83,152.76,47.22826059]
[1751243722439,5.2341,152.81,152.76,47.22826059]
[1751243722835,5.2341,152.81,152.76,52.46376059]
[1751243723439,4.69289097,152.8,152.76,42.7]
[1751243723642,4.69289097,152.83,152.76,42.7]
[1751243723843,5.2352,152.78,152.76,42.7]
[1751243726347,5.2348,152.79,152.76,42.7]
[1751243726551,4.69289097,152.83,152.76,42.7]
[1751243726847,5.2345,152.8,152.76,42.7]
[1751243727449,5.2345,152.8,152.76,52.46386059]
[1751243728046,4.69289097,152.82,152.78,9.76316059]
[1751243728355,4.69289097,152.84,152.78,4.52826059]
[1751243728648,9.92639097,152.83,152.78,4.52826059]
[1751243728844,5.2335,152.83,152.78,4.52826059]
[1751243729045,4.69289097,152.84,152.78,4.52826059]
[1751243729244,5.2339,152.82,152.78,4.52826059]
[1751243729546,4.69289097,152.84,152.78,4.52826059]
[1751243729748,5.2334,152.83,152.79,5.2346]
[1751243730246,5.2334,152.83,152.78,4.52826059]
[1751243730447,5.2334,152.83,152.78,9.76296059]
[1751243730643,5.2334,152.83,152.78,4.52826059]
[1751243730839,9.92589097,152.84,152.78,4.52826059]
[1751243731041,4.69289097,152.84,152.8,4.52826059]
[1751243731248,4.69289097,152.84,152.81,42.68]
[1751243731548,5.2324,152.86,152.81,47.9137]
[1751243731741,4.69841817,152.87,152.81,47.9137]
[1751243731940,5.2323,152.86,152.81,42.68]
[1751243732540,5.2323,152.86,152.81,47.9138]
[1751243733747,9.93041817,152.87,152.82,5.2335]
[1751243734147,5.232,152.87,152.82,5.2335]
[1751243734949,5.2323,152.86,152.81,52.4404]
[1751243735150,4.69841817,152.88,152.81,51.73486059]
[1751243735351,4.69841817,152.87,152.81,51.73486059]
[1751243735651,5.2321,152.87,152.82,5.2335]
[1751243735951,9.93051817,152.87,152.82,5.2335]
[1751243736149,5.2323,152.86,152.81,56.96866059]
[1751243736752,9.93041817,152.87,152.82,5.2335]
[1751243736949,5.232,152.87,152.82,5.2335]
[1751243737651,4.77746875,152.86,152.85,4.52826059]
[1751243737842,4.77746875,152.9,152.85,45.62826059]
[1751243738047,4.77746875,152.89,152.85,45.62826059]
[1751243738250,10.00806875,152.91,152.85,50.86086059]
[1751243738448,4.77746875,152.9,152.85,45.62826059]
[1751243738645,4.52826059,152.93,152.85,41.1]
[1751243738844,5.2314,152.89,152.85,41.1]
[1751243739149,4.77615285,152.91,152.85,41.1]
[1751243739352,4.77615285,152.9,152.85,41.1]
[1751243739551,4.77615285,152.92,152.85,41.1]
[1751243739852,4.77615285,152.91,152.85,41.1]
[1751243740154,4.77615285,152.92,152.85,41.1]
[1751243740355,5.2311,152.9,152.86,5.232]
[1751243741347,5.2311,152.9,152.85,41.1]
[1751243741552,10.00725285,152.9,152.85,41.1]
[1751243741854,5.2311,152.9,152.85,41.1]
[1751243742054,5.2312,152.89,152.86,5.2322]
[1751243743355,4.77615285,152.89,152.85,41.1]
[1751243743554,4.77615285,152.91,152.85,41.1]
[1751243743854,5.2317,152.88,152.85,41.1]
[1751243744250,5.2317,152.88,152.85,46.3323]
[1751243745657,5.232,152.87,152.85,41.1]
[1751243746053,4.52826059,152.91,152.85,41.1]
[1751243746247,4.52826059,152.89,152.81,4.5266]
[1751243746557,4.52826059,152.87,152.8,43.283]
[1751243746856,5.2331,152.84,152.8,48.5171]
[1751243747254,4.77615285,152.86,152.81,4.52826059]
[1751243747451,4.77615285,152.88,152.81,4.52826059]
[1751243747655,4.77615285,152.87,152.81,4.52826059]
[1751243747953,5.2324,152.86,152.82,5.2334]
[1751243749557,5.2327,152.85,152.81,5.2338]
[1751243749761,5.2327,152.85,152.8,47.81126059]
[1751243749958,5.2327,152.85,152.8,48.5171]
[1751243750159,5.233,152.84,152.8,48.5171]
[1751243752655,4.77615285,152.88,152.8,48.5171]
[1751243752656,5.2334,152.83,152.8,43.283]
[1751243753160,5.2336,152.82,152.8,43.283]
[1751243753361,4.77615285,152.86,152.8,43.283]
[1751243754361,4.77615285,152.86,152.8,48.5171]
[1751243755159,5.2331,152.84,152.81,5.2339]
[1751243755362,5.2331,152.84,152.8,43.283]
[1751243756358,4.52826059,152.83,152.78,41.1]
[1751243756959,5.234,152.81,152.78,46.3349]
[1751243757563,5.234,152.81,152.78,41.1]
[1751243758860,5.2337,152.82,152.78,41.1]
[1751243759365,5.2334,152.83,152.78,41.1]
[1751243759962,4.77615285,152.85,152.78,41.1]
[1751243760163,4.77615285,152.84,152.78,41.1]
[1751243760363,4.77615285,152.85,152.78,41.1]
[1751243760564,4.77615285,152.84,152.78,41.1]
[1751243760863,4.77615285,152.85,152.78,41.1]
[1751243761062,4.77615285,152.84,152.78,41.1]
[1751243761360,4.77615285,152.85,152.79,4.52826059]
[1751243761657,4.77615285,152.84,152.79,4.52826059]
[1751243761863,4.77615285,152.85,152.79,4.52826059]
[1751243762056,4.77615285,152.84,152.79,4.52826059]
[1751243762259,4.77615285,152.85,152.79,4.52826059]
[1751243762455,10.00925285,152.84,152.8,5.2343]
[1751243762665,5.2331,152.84,152.79,4.52826059]
[1751243762964,10.00925285,152.84,152.79,9.76266059]
[1751243763264,4.77615285,152.83,152.79,9.76266059]
[1751243763656,4.77615285,152.85,152.79,9.76266059]
[1751243763963,4.77615285,152.84,152.79,8.24810053]
[1751243764162,4.77615285,152.83,152.79,8.24810053]
[1751243764355,4.77615285,152.82,152.8,5.2342]
[1751243764559,6.75381081,152.87,152.78,41.1]
[1751243764560,4.77615285,152.85,152.81,3.01370053]
[1751243764756,4.77615285,152.84,152.82,39.56]
[1751243764956,4.77615285,152.83,152.82,44.7934]
[1751243765255,4.77615285,152.83,152.82,39.56]
[1751243766164,4.77615285,152.83,152.82,44.7936]
[1751243766458,4.77615285,152.86,152.82,39.56]
[1751243766656,4.77615285,152.85,152.82,39.56]
[1751243766860,4.77615285,152.84,152.82,39.56]
[1751243767066,10.49746857,152.87,152.82,39.56]
[1751243767264,4.65883076,152.86,152.82,39.56]
[1751243767465,4.65883076,152.85,152.82,39.56]
[1751243767666,4.65883076,152.84,152.83,5.2332]
[1751243768067,4.65883076,152.84,152.82,39.56]
[1751243768259,5.2323,152.86,152.82,39.56]
[1751243768464,4.66005748,152.85,152.82,39.56]
[1751243768764,4.66005748,152.84,152.82,39.56]
[1751243768967,5.2323,152.86,152.82,39.56]
[1751243769463,5.2323,152.86,152.82,44.7936]
[1751243769464,4.66078489,152.85,152.82,44.7936]
[1751243769664,4.66078489,152.84,152.82,44.7936]
[1751243769864,10.49842228,152.87,152.82,44.7936]
[1751243770064,4.66044738,152.86,152.83,5.2332]
[1751243770270,4.66044738,152.85,152.82,39.56]
[1751243770469,4.66044738,152.84,152.82,39.56]
[1751243770767,5.2322,152.86,152.82,44.7932]
[1751243771065,4.66165226,152.85,152.82,39.56]
[1751243771260,4.66165226,152.84,152.8,3.01370053]
[1751243771460,6.02904818,152.81,152.67,3.01452409]
[1751243771659,3.01452409,152.71,152.65,2.3494]
[1751243771858,8.25152409,152.72,152.67,5.2385]
[1751243772058,5.26512203,152.71,152.65,2.3494]
[1751243772262,8.25152409,152.72,152.65,2.3494]
[1751243772458,8.25152409,152.72,152.66,5.2387]
[1751243772660,3.01452409,152.72,152.66,5.2387]
[1751243772862,5.25903214,152.71,152.66,5.2387]
[1751243773059,3.01452409,152.72,152.66,5.2387]
[1751243773465,8.25162409,152.72,152.67,5.2386]
[1751243773665,3.01452409,152.72,152.67,5.2386]
[1751243773965,5.2369,152.73,152.67,5.2386]
[1751243774160,5.2369,152.73,152.68,39.56]
[1751243774559,5.2369,152.73,152.68,44.7983]
[1751243775061,4.52874886,152.72,152.68,44.7983]
[1751243775460,4.53001002,152.71,152.68,39.56]
[1751243775670,5.2377,152.7,152.68,39.56]
[1751243775864,5.2377,152.7,152.65,39.58]
[1751243776662,5.2377,152.7,152.66,5.239]
[1751243777570,9.76751002,152.71,152.66,5.239]
[1751243777970,5.2377,152.7,152.66,5.239]
[1751243779067,4.65233181,152.69,152.66,5.239]
[1751243779369,5.2377,152.7,152.66,5.239]
[1751243783277,5.2381,152.69,152.66,5.239]
[1751243786581,5.2378,152.7,152.66,5.239]
[1751243786876,4.53001002,152.75,152.66,4.53001002]
[1751243787072,4.52905078,152.67,152.47,8.06713261]
[1751243787272,19.63,152.68,152.51,4.52905078]
[1751243787273,4.52905078,152.61,152.51,4.52905078]
[1751243787677,4.52905078,152.61,152.52,39.58]
[1751243787878,4.52905078,152.61,152.53,4.52905078]
[1751243788079,5.2421,152.58,152.53,4.52905078]
[1751243789178,5.2423,152.57,152.53,4.52905078]
[1751243789381,4.52905078,152.61,152.52,39.58]
[1751243790084,4.53663388,152.6,152.52,44.8238]
[1751243790280,4.53663388,152.64,152.52,39.58]
[1751243790480,4.53663388,152.6,152.52,39.58]
[1751243792077,4.53663388,152.6,152.53,5.2433]
[1751243793382,9.77783388,152.6,152.53,5.2433]
[1751243793686,9.77783388,152.6,152.54,5.243]
[1751243793984,3.02467908,152.58,152.54,5.243]
[1751243794582,3.02467908,152.58,152.55,5.2428]
[1751243795583,3.02467908,152.58,152.56,5.2423]
[1751243796387,3.02467908,152.58,152.5,3.02467908]
[1751243796587,3.02467908,152.58,152.51,40.12]
[1751243796788,3.02467908,152.58,152.52,40.12]
[1751243797592,3.02467908,152.56,152.52,40.12]
[1751243798183,40.12,152.62,152.52,40.12]
[1751243798489,3.02467908,152.61,152.54,3.02467908]
[1751243799285,8.26547908,152.61,152.57,5.2419]
[1751243799986,40.12,152.65,152.5,43.14467908]
[1751243799987,3.02467908,152.58,152.5,43.14467908]
[1751243800186,3.02467908,152.58,152.5,47.64267908]
[1751243800486,8.26677908,152.58,152.53,5.2432]
[1751243800787,8.26677908,152.58,152.5,47.64267908]
[1751243800986,8.26677908,152.58,152.53,5.2433]
[1751243801188,8.26627908,152.59,152.52,3.02467908]
[1751243801583,8.26627908,152.59,152.55,5.2428]
[1751243801992,3.02467908,152.59,152.54,40.14]
[1751243802491,5.2412,152.6,152.56,5.2425]
[1751243803391,3.02467908,152.62,152.54,43.16467908]
[1751243804093,3.02467908,152.62,152.58,5.2417]
[1751243804688,8.26527908,152.62,152.58,5.2417]
[1751243805086,8.26527908,152.62,152.59,5.2415]
[1751243805291,8.26527908,152.62,152.56,3.02467908]
[1751243805586,8.26527908,152.62,152.59,5.2415]
[1751243805984,3.02467908,152.64,152.58,43.16467908]
[1751243806190,3.02467908,152.64,152.59,40.14]
[1751243806393,5.2395,152.65,152.59,40.14]
[1751243806987,5.2395,152.65,152.61,5.2406]
[1751243808491,5.2399,152.64,152.61,5.2406]
[1751243808990,5.2397,152.65,152.59,43.16467908]
[1751243810589,5.2397,152.65,152.62,5.2404]
[1751243814091,3.02467908,152.64,152.59,40.14]
[1751243814294,3.02467908,152.62,152.5,4.498]
[1751243814492,3.02467908,152.62,152.55,3.02467908]
[1751243814789,3.02467908,152.64,152.57,3.02467908]
[1751243814993,3.02467908,152.64,152.57,43.16467908]
[1751243815292,3.02467908,152.64,152.59,5.2413]
[1751243816291,3.02467908,152.64,152.6,5.241]
[1751243816495,7.36537908,152.66,152.59,3.02467908]
[1751243816997,7.36537908,152.66,152.6,5.241]
[1751243817390,5.2401,152.63,152.6,5.241]
[1751243817995,5.2399,152.64,152.6,5.241]
[1751243818996,5.2399,152.64,152.61,45.3607]
[1751243819396,5.2399,152.64,152.61,40.12]
[1751243821496,5.2404,152.62,152.58,44.079]
[1751243822293,5.2404,152.62,152.59,5.2413]
[1751243822996,3.02467908,152.62,152.58,39.56]
[1751243823195,3.02467908,152.62,152.57,39.56]
[1751243823500,5.2416,152.59,152.57,39.56]
[1751243823700,3.02467908,152.62,152.57,39.56]
[1751243824093,45.62402705,152.65,152.57,39.56]
[1751243824298,3.02467908,152.62,152.57,39.56]
[1751243824495,5.241,152.61,152.58,5.2416]
[1751243827499,5.241,152.61,152.57,39.56]
[1751243827900,5.2408,152.62,152.57,42.58467908]
[1751243828199,5.2408,152.62,152.58,5.2416]
[1751243829501,3.02467908,152.64,152.57,39.56]
[1751243829999,5.241,152.61,152.58,5.2418]
[1751243832200,5.2406,152.62,152.58,5.2418]
[1751243832895,5.2408,152.61,152.58,5.2418]
[1751243833701,5.2406,152.62,152.59,5.2414]
[1751243834903,5.2406,152.62,152.58,5.2417]
[1751243835298,5.2402,152.63,152.59,5.2412]
[1751243835603,5.2402,152.63,152.58,3.02467908]
[1751243835796,5.24,152.64,152.6,5.2409]
[1751243837803,5.17477908,152.66,152.59,8.26607908]
[1751243837804,5.2403,152.63,152.59,8.26607908]
[1751243838107,5.17477908,152.66,152.58,3.02467908]
[1751243838299,5.2405,152.62,152.58,8.26617908]
[1751243839605,5.2409,152.61,152.58,8.26617908]
[1751243840099,3.02467908,152.64,152.59,5.2414]
[1751243841306,5.2406,152.62,152.59,5.2414]
[1751243842105,3.02467908,152.64,152.57,51.6741]
[1751243842409,3.02467908,152.64,152.57,46.4321]
[1751243842711,5.2408,152.61,152.58,5.2417]
[1751243843006,8.21412705,152.66,152.57,49.45677908]
[1751243843203,5.17477908,152.66,152.59,3.02467908]
[1751243843408,3.02467908,152.66,152.59,3.02467908]
[1751243843609,9.08870613,152.68,152.61,3.02467908]
[1751243843809,9.08870613,152.68,152.62,39.58]
[1751243844108,5.2394,152.66,152.62,44.8202]
[1751243844409,3.02467908,152.68,152.62,44.8202]
[1751243844910,5.2394,152.66,152.63,5.24]
[1751243845905,9.08870613,152.69,152.63,3.02467908]
[1751243845906,5.2389,152.67,152.63,3.02467908]
[1751243846109,3.02467908,152.69,152.63,3.02467908]
[1751243846308,5.2382,152.69,152.65,3.02467908]
[1751243846510,3.02467908,152.71,152.65,3.02467908]
[1751243846711,5.2383,152.69,152.65,8.26397908]
[1751243847007,5.2383,152.69,152.66,39.56]
[1751243848410,5.2378,152.7,152.66,39.56]
[1751243849516,5.2378,152.7,152.66,44.7989]
[1751243849716,5.2378,152.7,152.66,39.56]
[1751243850216,5.2375,152.71,152.67,5.2387]
[1751243850914,5.2377,152.7,152.66,39.56]
[1751243851108,3.02467908,152.72,152.66,39.56]
[1751243851312,5.2375,152.71,152.67,5.2385]
[1751243851512,5.22217908,152.74,152.67,3.02467908]
[1751243851912,5.2373,152.72,152.68,5.2382]
[1751243852316,5.2374,152.71,152.68,5.2382]
[1751243852817,5.2374,152.71,152.67,8.26327908]
[1751243853018,5.2378,152.7,152.67,8.26327908]
[1751243853220,3.02467908,152.71,152.66,39.56]
[1751243853819,5.2384,152.69,152.66,39.56]
[1751243854016,3.02467908,152.71,152.66,39.56]